[Event "Titled Tuesday Blitz December 14 2021"]
[White "Acor, Corey"]
[Black "Kamsky, Gata"]
[WhiteFideId "2024861"]
[BlackFideId "2000024"]
[WhiteElo "2303"]
[BlackElo "2645"]
[Result "1/2-1/2"]
[Round "09"]
[TimeControl "180+1"]
[Date "2021.12.14"]
[WhiteClock "0:00:13"]
[BlackClock "0:00:31"]

1. e4 {[%clk 0:02:16]}  c5 {[%clk 0:02:54]} 2. Nc3 {[%clk 0:02:16]}  e6 {[%clk 0:02:53]} 3. g3 {[%clk 0:02:16]}  Nc6 {[%clk 0:02:51]} 4. Bg2 {[%clk 0:02:16]}  g6 {[%clk 0:02:51]} 5. d3 {[%clk 0:02:17]}  Bg7 {[%clk 0:02:51]} 6. Be3 {[%clk 0:02:17]}  d6 {[%clk 0:02:43]} 7. Nf3 {[%clk 0:02:17]}  e5 {[%clk 0:02:41]} 8. O-O {[%clk 0:02:16]}  Nge7 {[%clk 0:02:40]} 9. Nh4 {[%clk 0:02:15]}  O-O {[%clk 0:02:37]} 10. f4 {[%clk 0:02:15]}  exf4 {[%clk 0:02:35]} 11. Bxf4 {[%clk 0:02:15]}  h6 {[%clk 0:02:23]} 12. Be3 {[%clk 0:02:09]}  Be6 {[%clk 0:02:19]} 13. Qd2 {[%clk 0:02:06]}  Kh7 {[%clk 0:02:18]} 14. Rf2 {[%clk 0:02:06]}  Qd7 {[%clk 0:02:07]} 15. Raf1 {[%clk 0:02:05]}  b6 {[%clk 0:02:03]} 16. Nd5 {[%clk 0:02:04]}  Bxd5 {[%clk 0:01:59]} 17. exd5 {[%clk 0:02:02]}  Ne5 {[%clk 0:01:57]} 18. c3 {[%clk 0:01:49]}  f5 {[%clk 0:01:55]} 19. h3 {[%clk 0:01:38]}  c4 {[%clk 0:01:49]} 20. d4 {[%clk 0:01:28]}  Nd3 {[%clk 0:01:49]} 21. Re2 {[%clk 0:01:28]}  b5 {[%clk 0:01:47]} 22. Kh2 {[%clk 0:01:10]}  Rae8 {[%clk 0:01:45]} 23. Bg1 {[%clk 0:01:09]}  g5 {[%clk 0:01:40]} 24. Nf3 {[%clk 0:01:07]}  Ng6 {[%clk 0:01:35]} 25. Ne1 {[%clk 0:01:05]}  Rxe2 {[%clk 0:01:34]} 26. Qxe2 {[%clk 0:01:06]}  Re8 {[%clk 0:01:33]} 27. Qd2 {[%clk 0:01:05]}  Nxe1 {[%clk 0:01:25]} 28. Rxe1 {[%clk 0:01:06]}  Kg8 {[%clk 0:01:14]} 29. Bf3 {[%clk 0:01:05]}  Rxe1 {[%clk 0:01:05]} 30. Qxe1 {[%clk 0:01:05]}  Qe7 {[%clk 0:01:06]} 31. Qe6+ {[%clk 0:01:00]}  Qxe6 {[%clk 0:01:01]} 32. dxe6 {[%clk 0:01:01]}  Ne7 {[%clk 0:00:58]} 33. Bb7 {[%clk 0:00:54]}  d5 {[%clk 0:00:55]} 34. Ba6 {[%clk 0:00:50]}  Kf8 {[%clk 0:00:40]} 35. Bxb5 {[%clk 0:00:50]}  Nc8 {[%clk 0:00:37]} 36. a4 {[%clk 0:00:37]}  a5 {[%clk 0:00:34]} 37. Bd7 {[%clk 0:00:25]}  Nb6 {[%clk 0:00:34]} 38. Be3 {[%clk 0:00:14]}  Nxd7 {[%clk 0:00:32]} 39. exd7 {[%clk 0:00:15]}  Ke7 {[%clk 0:00:32]} 40. g4 {[%clk 0:00:10]}  f4 {[%clk 0:00:31]} 41. Bc1 {[%clk 0:00:10]}  Kxd7 {[%clk 0:00:31]} 42. Kg2 {[%clk 0:00:11]}  Ke6 {[%clk 0:00:31]} 43. Kf3 {[%clk 0:00:12]}  Bf8 {[%clk 0:00:30]} 44. Bd2 {[%clk 0:00:13]}  Bd6 {[%clk 0:00:31]} 45. Bc1 {[%clk 0:00:13]} 1/2-1/2


[Site "https://www.chess.com"]

[Event "Titled Tuesday Blitz December 14 2021"]
[White "Albornoz Cabrera, Carlos Daniel"]
[Black "Dobrov, Vladimir"]
[WhiteFideId "3518736"]
[BlackFideId "4136594"]
[WhiteElo "2490"]
[BlackElo "2614"]
[Result "0-1"]
[Round "09"]
[TimeControl "180+1"]
[Date "2021.12.14"]
[WhiteClock "0:00:02"]
[BlackClock "0:00:24"]

1. e4 {[%clk 0:03:00]}  c5 {[%clk 0:02:58]} 2. Nf3 {[%clk 0:03:01]}  Nc6 {[%clk 0:02:58]} 3. Bb5 {[%clk 0:02:57]}  e6 {[%clk 0:02:57]} 4. O-O {[%clk 0:02:57]}  Nge7 {[%clk 0:02:57]} 5. c3 {[%clk 0:02:55]}  a6 {[%clk 0:02:55]} 6. Ba4 {[%clk 0:02:53]}  b5 {[%clk 0:02:55]} 7. Bc2 {[%clk 0:02:53]}  Bb7 {[%clk 0:02:49]} 8. d4 {[%clk 0:02:53]}  cxd4 {[%clk 0:02:42]} 9. cxd4 {[%clk 0:02:46]}  d5 {[%clk 0:02:29]} 10. Nc3 {[%clk 0:02:43]}  Nb4 {[%clk 0:02:23]} 11. e5 {[%clk 0:02:43]}  Nxc2 {[%clk 0:02:23]} 12. Qxc2 {[%clk 0:02:43]}  Qd7 {[%clk 0:02:14]} 13. Bg5 {[%clk 0:02:29]}  h6 {[%clk 0:02:09]} 14. Bf4 {[%clk 0:02:28]}  Rc8 {[%clk 0:01:56]} 15. Qd2 {[%clk 0:02:27]}  Ng6 {[%clk 0:01:44]} 16. Be3 {[%clk 0:02:25]}  Bb4 {[%clk 0:01:41]} 17. a3 {[%clk 0:02:20]}  Ba5 {[%clk 0:01:41]} 18. Rac1 {[%clk 0:02:14]}  Ne7 {[%clk 0:01:36]} 19. g4 {[%clk 0:02:12]}  h5 {[%clk 0:01:23]} 20. h3 {[%clk 0:02:11]}  hxg4 {[%clk 0:01:17]} 21. hxg4 {[%clk 0:02:12]}  f5 {[%clk 0:01:18]} 22. exf6 {[%clk 0:01:59]}  gxf6 {[%clk 0:01:17]} 23. Kg2 {[%clk 0:01:36]}  e5 {[%clk 0:01:17]} 24. Nh2 {[%clk 0:01:32]}  Rxh2+ {[%clk 0:01:13]} 25. Kxh2 {[%clk 0:01:32]}  Qxg4 {[%clk 0:01:12]} 26. Rg1 {[%clk 0:01:27]}  Qh5+ {[%clk 0:01:11]} 27. Kg2 {[%clk 0:01:28]}  Kf7 {[%clk 0:01:02]} 28. Kf1 {[%clk 0:01:20]}  Nf5 {[%clk 0:00:58]} 29. b4 {[%clk 0:01:08]}  Bb6 {[%clk 0:00:53]} 30. Ne2 {[%clk 0:01:01]}  Rc4 {[%clk 0:00:46]} 31. Rxc4 {[%clk 0:00:52]}  dxc4 {[%clk 0:00:46]} 32. dxe5 {[%clk 0:00:52]}  Nxe3+ {[%clk 0:00:41]} 33. fxe3 {[%clk 0:00:52]}  Qh3+ {[%clk 0:00:38]} 34. Ke1 {[%clk 0:00:51]}  Bxe3 {[%clk 0:00:38]} 35. e6+ {[%clk 0:00:41]}  Qxe6 {[%clk 0:00:37]} 36. Qc2 {[%clk 0:00:14]}  Be4 {[%clk 0:00:33]} 37. Qc3 {[%clk 0:00:10]}  Bxg1 {[%clk 0:00:32]} 38. Nxg1 {[%clk 0:00:11]}  Bd3+ {[%clk 0:00:31]} 39. Kf2 {[%clk 0:00:11]}  Qf5+ {[%clk 0:00:31]} 40. Kg3 {[%clk 0:00:07]}  Qg5+ {[%clk 0:00:29]} 41. Kh2 {[%clk 0:00:05]}  Qf4+ {[%clk 0:00:30]} 42. Kg2 {[%clk 0:00:04]}  Be4+ {[%clk 0:00:29]} 43. Kh3 {[%clk 0:00:03]}  Qh6+ {[%clk 0:00:27]} 44. Kg3 {[%clk 0:00:02]}  Qg5+ {[%clk 0:00:27]} 45. Kf2 {[%clk 0:00:03]}  Qf4+ {[%clk 0:00:24]} 46. Ke2 {[%clk 0:00:02]}  Bd3+ {[%clk 0:00:24]} 0-1


[Site "https://www.chess.com"]

[Event "Titled Tuesday Blitz December 14 2021"]
[White "Alikhanov, Felix"]
[Black "Sychev, Klementy"]
[WhiteFideId "4157427"]
[BlackFideId "4114060"]
[WhiteElo "2425"]
[BlackElo "2615"]
[Result "1-0"]
[Round "09"]
[TimeControl "180+1"]
[Date "2021.12.14"]
[WhiteClock "0:00:16"]
[BlackClock "0:00:02"]

1. e4 {[%clk 0:02:59]}  Nc6 {[%clk 0:02:57]} 2. d4 {[%clk 0:02:59]}  d5 {[%clk 0:02:54]} 3. Nc3 {[%clk 0:02:56]}  dxe4 {[%clk 0:02:53]} 4. d5 {[%clk 0:02:55]}  Nb8 {[%clk 0:02:53]} 5. Bf4 {[%clk 0:02:54]}  Nf6 {[%clk 0:02:48]} 6. Qd2 {[%clk 0:02:53]}  c6 {[%clk 0:02:38]} 7. O-O-O {[%clk 0:01:53]}  cxd5 {[%clk 0:02:35]} 8. f3 {[%clk 0:01:53]}  exf3 {[%clk 0:02:34]} 9. Nxf3 {[%clk 0:01:53]}  e6 {[%clk 0:02:33]} 10. g4 {[%clk 0:01:48]}  Bb4 {[%clk 0:02:30]} 11. Qd4 {[%clk 0:01:35]}  Bxc3 {[%clk 0:02:29]} 12. Qxc3 {[%clk 0:01:33]}  O-O {[%clk 0:02:24]} 13. Bd3 {[%clk 0:01:31]}  Nc6 {[%clk 0:02:20]} 14. g5 {[%clk 0:01:31]}  d4 {[%clk 0:02:20]} 15. Nxd4 {[%clk 0:01:00]}  Nd5 {[%clk 0:02:00]} 16. Nxc6 {[%clk 0:00:58]}  bxc6 {[%clk 0:01:56]} 17. Qc4 {[%clk 0:00:43]}  Qb6 {[%clk 0:01:51]} 18. Bd2 {[%clk 0:00:35]}  Rb8 {[%clk 0:01:43]} 19. b3 {[%clk 0:00:34]}  Nb4 {[%clk 0:01:23]} 20. Bxb4 {[%clk 0:00:19]}  Qxb4 {[%clk 0:01:23]} 21. Qxb4 {[%clk 0:00:19]}  Rxb4 {[%clk 0:01:22]} 22. h4 {[%clk 0:00:20]}  e5 {[%clk 0:01:19]} 23. h5 {[%clk 0:00:19]}  Bg4 {[%clk 0:01:15]} 24. Rde1 {[%clk 0:00:19]}  Bf3 {[%clk 0:01:14]} 25. Rhf1 {[%clk 0:00:17]}  e4 {[%clk 0:01:13]} 26. Bc4 {[%clk 0:00:17]}  c5 {[%clk 0:01:02]} 27. g6 {[%clk 0:00:17]}  Rxc4 {[%clk 0:00:40]} 28. gxf7+ {[%clk 0:00:14]}  Rxf7 {[%clk 0:00:28]} 29. bxc4 {[%clk 0:00:14]}  g5 {[%clk 0:00:28]} 30. hxg6 {[%clk 0:00:14]}  hxg6 {[%clk 0:00:28]} 31. Rg1 {[%clk 0:00:14]}  Kg7 {[%clk 0:00:26]} 32. Rg5 {[%clk 0:00:15]}  Rf5 {[%clk 0:00:23]} 33. Reg1 {[%clk 0:00:15]}  Kf6 {[%clk 0:00:12]} 34. Rxg6+ {[%clk 0:00:15]}  Ke5 {[%clk 0:00:12]} 35. R6g5 {[%clk 0:00:13]}  e3 {[%clk 0:00:10]} 36. Rxf5+ {[%clk 0:00:13]}  Kxf5 {[%clk 0:00:10]} 37. Re1 {[%clk 0:00:13]}  Ke4 {[%clk 0:00:10]} 38. Rg1 {[%clk 0:00:13]}  Kd4 {[%clk 0:00:07]} 39. Rf1 {[%clk 0:00:13]}  Bh5 {[%clk 0:00:05]} 40. Rf4+ {[%clk 0:00:11]}  Kc3 {[%clk 0:00:04]} 41. Re4 {[%clk 0:00:12]}  e2 {[%clk 0:00:04]} 42. Re3+ {[%clk 0:00:12]}  Kxc4 {[%clk 0:00:04]} 43. Kd2 {[%clk 0:00:13]}  a5 {[%clk 0:00:03]} 44. Ra3 {[%clk 0:00:13]}  Kb5 {[%clk 0:00:03]} 45. Rb3+ {[%clk 0:00:14]}  Kc6 {[%clk 0:00:03]} 46. Ra3 {[%clk 0:00:14]}  Kb6 {[%clk 0:00:03]} 47. Rb3+ {[%clk 0:00:15]}  Kc6 {[%clk 0:00:03]} 48. Ra3 {[%clk 0:00:15]}  Kb5 {[%clk 0:00:04]} 49. Rh3 {[%clk 0:00:14]}  Bg4 {[%clk 0:00:03]} 50. Rh4 {[%clk 0:00:15]}  Bf3 {[%clk 0:00:04]} 51. Rf4 {[%clk 0:00:15]}  Bh5 {[%clk 0:00:04]} 52. Rf5 {[%clk 0:00:15]}  Bg4 {[%clk 0:00:04]} 53. a4+ {[%clk 0:00:16]}  Kc6 {[%clk 0:00:03]} 54. Rf4 {[%clk 0:00:16]}  Bh5 {[%clk 0:00:03]} 55. Rf6+ {[%clk 0:00:16]}  Kc7 {[%clk 0:00:02]} 56. Ra6 {[%clk 0:00:16]} 1-0


[Site "https://www.chess.com"]

[Event "Titled Tuesday Blitz December 14 2021"]
[White "Belous, Vladimir"]
[Black "Aggelis, Nikolaos"]
[WhiteFideId "4174003"]
[BlackFideId "4213220"]
[WhiteElo "2510"]
[BlackElo "2154"]
[Result "1-0"]
[Round "09"]
[TimeControl "180+1"]
[Date "2021.12.14"]
[WhiteClock "0:01:03"]
[BlackClock "0:01:09"]

1. Nf3 {[%clk 0:02:52]}  Nf6 {[%clk 0:02:38]} 2. c4 {[%clk 0:02:51]}  g6 {[%clk 0:02:38]} 3. Nc3 {[%clk 0:02:52]}  d5 {[%clk 0:02:39]} 4. d4 {[%clk 0:02:51]}  Bg7 {[%clk 0:02:39]} 5. Bf4 {[%clk 0:02:52]}  O-O {[%clk 0:02:38]} 6. e3 {[%clk 0:02:52]}  c5 {[%clk 0:02:37]} 7. dxc5 {[%clk 0:02:53]}  Qa5 {[%clk 0:02:30]} 8. Rc1 {[%clk 0:02:53]}  dxc4 {[%clk 0:02:30]} 9. Bxc4 {[%clk 0:02:54]}  Qxc5 {[%clk 0:02:30]} 10. Bb3 {[%clk 0:02:55]}  Nc6 {[%clk 0:02:30]} 11. O-O {[%clk 0:02:55]}  Qa5 {[%clk 0:02:30]} 12. h3 {[%clk 0:02:55]}  Qa6 {[%clk 0:02:29]} 13. e4 {[%clk 0:02:47]}  Rd8 {[%clk 0:02:24]} 14. Nd5 {[%clk 0:02:36]}  Nxd5 {[%clk 0:02:20]} 15. exd5 {[%clk 0:02:35]}  e6 {[%clk 0:02:16]} 16. Bg5 {[%clk 0:02:24]}  Rxd5 {[%clk 0:02:00]} 17. Bxd5 {[%clk 0:02:22]}  exd5 {[%clk 0:02:00]} 18. Qxd5 {[%clk 0:02:06]}  Be6 {[%clk 0:01:59]} 19. Qd2 {[%clk 0:02:05]}  Qxa2 {[%clk 0:01:59]} 20. Rfd1 {[%clk 0:01:55]}  Qxb2 {[%clk 0:01:58]} 21. Qf4 {[%clk 0:01:32]}  h6 {[%clk 0:01:48]} 22. Bxh6 {[%clk 0:01:31]}  Bxh6 {[%clk 0:01:47]} 23. Qxh6 {[%clk 0:01:31]}  Qg7 {[%clk 0:01:48]} 24. Qf4 {[%clk 0:01:28]}  a5 {[%clk 0:01:46]} 25. Ng5 {[%clk 0:01:27]}  Bb3 {[%clk 0:01:44]} 26. Rd7 {[%clk 0:01:23]}  a4 {[%clk 0:01:35]} 27. Rxb7 {[%clk 0:01:11]}  Qd4 {[%clk 0:01:28]} 28. Rxf7 {[%clk 0:01:02]}  Qxf4 {[%clk 0:01:19]} 29. Rxf4 {[%clk 0:01:03]}  a3 {[%clk 0:01:18]} 30. Rxc6 {[%clk 0:01:02]}  a2 {[%clk 0:01:13]} 31. Rxg6+ {[%clk 0:01:03]}  Kh8 {[%clk 0:01:09]} 32. Rh4# {[%clk 0:01:03]} 1-0


[Site "https://www.chess.com"]

[Event "Titled Tuesday Blitz December 14 2021"]
[White "Donchenko, Alexander"]
[Black "Bortnyk, Olexandr"]
[WhiteFideId "24603295"]
[BlackFideId "14120828"]
[WhiteElo "2494"]
[BlackElo "2723"]
[Result "0-1"]
[Round "09"]
[TimeControl "180+1"]
[Date "2021.12.14"]
[WhiteClock "0:00:11"]
[BlackClock "0:00:34"]

1. Nf3 {[%clk 0:03:00]}  Nf6 {[%clk 0:03:00]} 2. g3 {[%clk 0:03:01]}  d6 {[%clk 0:03:01]} 3. d4 {[%clk 0:03:00]}  g6 {[%clk 0:03:02]} 4. Bg2 {[%clk 0:03:00]}  Bg7 {[%clk 0:03:00]} 5. O-O {[%clk 0:03:01]}  O-O {[%clk 0:03:00]} 6. b3 {[%clk 0:03:02]}  Bf5 {[%clk 0:03:00]} 7. Bb2 {[%clk 0:03:01]}  Qc8 {[%clk 0:03:01]} 8. Nbd2 {[%clk 0:02:59]}  c6 {[%clk 0:02:57]} 9. Re1 {[%clk 0:02:58]}  d5 {[%clk 0:02:57]} 10. c4 {[%clk 0:02:54]}  h6 {[%clk 0:02:55]} 11. cxd5 {[%clk 0:02:50]}  cxd5 {[%clk 0:02:56]} 12. Rc1 {[%clk 0:02:50]}  Qe6 {[%clk 0:02:49]} 13. Ne5 {[%clk 0:02:46]}  Nbd7 {[%clk 0:02:36]} 14. Ndf3 {[%clk 0:02:44]}  Be4 {[%clk 0:02:27]} 15. Nxd7 {[%clk 0:02:35]}  Nxd7 {[%clk 0:02:28]} 16. Qd2 {[%clk 0:02:32]}  Rfc8 {[%clk 0:02:23]} 17. Qb4 {[%clk 0:02:29]}  b6 {[%clk 0:02:16]} 18. Ba3 {[%clk 0:02:19]}  Bf6 {[%clk 0:02:12]} 19. Qa4 {[%clk 0:02:11]}  a5 {[%clk 0:01:56]} 20. Qb5 {[%clk 0:01:57]}  g5 {[%clk 0:01:28]} 21. e3 {[%clk 0:01:44]}  Kg7 {[%clk 0:01:20]} 22. Nd2 {[%clk 0:01:36]}  Bxg2 {[%clk 0:01:20]} 23. Kxg2 {[%clk 0:01:37]}  Nf8 {[%clk 0:01:17]} 24. Qd3 {[%clk 0:01:05]}  Ng6 {[%clk 0:01:16]} 25. Nb1 {[%clk 0:01:01]}  Qg4 {[%clk 0:01:09]} 26. Qe2 {[%clk 0:00:41]}  Nh4+ {[%clk 0:01:06]} 27. Kg1 {[%clk 0:00:35]}  Nf3+ {[%clk 0:01:05]} 28. Kh1 {[%clk 0:00:34]}  Qe4 {[%clk 0:00:59]} 29. Rf1 {[%clk 0:00:15]}  Nxd4+ {[%clk 0:00:41]} 30. f3 {[%clk 0:00:15]}  Nxe2 {[%clk 0:00:42]} 31. Rxc8 {[%clk 0:00:11]}  Qd3 {[%clk 0:00:34]} 0-1


[Site "https://www.chess.com"]

[Event "Titled Tuesday Blitz December 14 2021"]
[White "Dubov, Daniil"]
[Black "Ibarra Jerez, Jose Carlos"]
[WhiteFideId "24126055"]
[BlackFideId "2226332"]
[WhiteElo "2749"]
[BlackElo "2626"]
[Result "1/2-1/2"]
[Round "09"]
[TimeControl "180+1"]
[Date "2021.12.14"]
[WhiteClock "0:00:25"]
[BlackClock "0:00:34"]

1. e4 {[%clk 0:03:00]}  c5 {[%clk 0:02:58]} 2. Nf3 {[%clk 0:03:00]}  Nf6 {[%clk 0:02:54]} 3. e5 {[%clk 0:03:00]}  Nd5 {[%clk 0:02:54]} 4. Nc3 {[%clk 0:03:01]}  e6 {[%clk 0:02:54]} 5. Ne4 {[%clk 0:03:01]}  f5 {[%clk 0:02:53]} 6. exf6 {[%clk 0:03:00]}  Nxf6 {[%clk 0:02:50]} 7. Nxf6+ {[%clk 0:02:57]}  Qxf6 {[%clk 0:02:49]} 8. d4 {[%clk 0:02:57]}  cxd4 {[%clk 0:02:44]} 9. Qxd4 {[%clk 0:02:56]}  Nc6 {[%clk 0:02:37]} 10. Qe3 {[%clk 0:02:52]}  d5 {[%clk 0:02:30]} 11. Bd3 {[%clk 0:02:41]}  Bd6 {[%clk 0:02:20]} 12. O-O {[%clk 0:02:41]}  O-O {[%clk 0:02:18]} 13. Ng5 {[%clk 0:02:39]}  g6 {[%clk 0:01:52]} 14. c4 {[%clk 0:02:22]}  Ne5 {[%clk 0:01:46]} 15. Be2 {[%clk 0:02:15]}  Nxc4 {[%clk 0:01:38]} 16. Bxc4 {[%clk 0:02:15]}  dxc4 {[%clk 0:01:38]} 17. Ne4 {[%clk 0:02:16]}  Qf4 {[%clk 0:01:21]} 18. Nxd6 {[%clk 0:02:12]}  Qxd6 {[%clk 0:01:20]} 19. Bd2 {[%clk 0:01:53]}  Qd3 {[%clk 0:01:16]} 20. Qh6 {[%clk 0:01:53]}  e5 {[%clk 0:01:08]} 21. Bc3 {[%clk 0:01:49]}  Qf5 {[%clk 0:01:08]} 22. f4 {[%clk 0:01:37]}  Qh5 {[%clk 0:01:02]} 23. Qxh5 {[%clk 0:01:36]}  gxh5 {[%clk 0:01:03]} 24. Bxe5 {[%clk 0:01:36]}  Bf5 {[%clk 0:01:02]} 25. Rad1 {[%clk 0:01:28]}  Rfd8 {[%clk 0:01:00]} 26. Kf2 {[%clk 0:01:28]}  Kf7 {[%clk 0:00:55]} 27. Ke3 {[%clk 0:01:27]}  Rac8 {[%clk 0:00:46]} 28. h3 {[%clk 0:01:06]}  Rd3+ {[%clk 0:00:39]} 29. Rxd3 {[%clk 0:01:05]}  cxd3 {[%clk 0:00:40]} 30. Bc3 {[%clk 0:00:43]}  Re8+ {[%clk 0:00:39]} 31. Be5 {[%clk 0:00:43]}  Rc8 {[%clk 0:00:38]} 32. Kf3 {[%clk 0:00:38]}  h4 {[%clk 0:00:34]} 33. Bc3 {[%clk 0:00:33]}  Re8 {[%clk 0:00:30]} 34. Re1 {[%clk 0:00:32]}  Rxe1 {[%clk 0:00:15]} 35. Bxe1 {[%clk 0:00:31]}  Be6 {[%clk 0:00:15]} 36. Ke4 {[%clk 0:00:21]}  Bxa2 {[%clk 0:00:15]} 37. Kxd3 {[%clk 0:00:05]}  Bd5 {[%clk 0:00:15]} 38. Bxh4 {[%clk 0:00:06]}  Bxg2 {[%clk 0:00:15]} 39. Bf2 {[%clk 0:00:06]}  Bxh3 {[%clk 0:00:15]} 40. Bxa7 {[%clk 0:00:06]}  Ke6 {[%clk 0:00:15]} 41. f5+ {[%clk 0:00:05]}  Kxf5 {[%clk 0:00:14]} 42. Ke3 {[%clk 0:00:06]}  Kg4 {[%clk 0:00:14]} 43. Bb8 {[%clk 0:00:07]}  Bg2 {[%clk 0:00:14]} 44. Kf2 {[%clk 0:00:07]}  Kh3 {[%clk 0:00:14]} 45. Bc7 {[%clk 0:00:08]}  Bc6 {[%clk 0:00:14]} 46. Bb8 {[%clk 0:00:08]}  h5 {[%clk 0:00:14]} 47. Bc7 {[%clk 0:00:09]}  Kg4 {[%clk 0:00:14]} 48. Bb8 {[%clk 0:00:10]}  Kf5 {[%clk 0:00:14]} 49. Bc7 {[%clk 0:00:11]}  Ke6 {[%clk 0:00:15]} 50. Bb8 {[%clk 0:00:11]}  Kd7 {[%clk 0:00:16]} 51. Bg3 {[%clk 0:00:11]}  Be4 {[%clk 0:00:16]} 52. Be5 {[%clk 0:00:12]}  Bf5 {[%clk 0:00:17]} 53. Kg3 {[%clk 0:00:11]}  Bg4 {[%clk 0:00:18]} 54. Kh4 {[%clk 0:00:11]}  Ke6 {[%clk 0:00:18]} 55. Bh8 {[%clk 0:00:11]}  Kd5 {[%clk 0:00:19]} 56. Bg7 {[%clk 0:00:12]}  Ke6 {[%clk 0:00:20]} 57. Bh8 {[%clk 0:00:12]}  Kf7 {[%clk 0:00:21]} 58. Bc3 {[%clk 0:00:13]}  b5 {[%clk 0:00:22]} 59. Bb4 {[%clk 0:00:13]}  Ke6 {[%clk 0:00:23]} 60. Bc3 {[%clk 0:00:14]}  Kd5 {[%clk 0:00:24]} 61. Bb4 {[%clk 0:00:14]}  Kc4 {[%clk 0:00:25]} 62. Bc3 {[%clk 0:00:15]}  b4 {[%clk 0:00:25]} 63. Bg7 {[%clk 0:00:16]}  Kd5 {[%clk 0:00:25]} 64. Bh8 {[%clk 0:00:16]}  Ke6 {[%clk 0:00:26]} 65. Bd4 {[%clk 0:00:16]}  Kf7 {[%clk 0:00:27]} 66. Bc5 {[%clk 0:00:16]}  b3 {[%clk 0:00:27]} 67. Bd4 {[%clk 0:00:17]}  Ke6 {[%clk 0:00:28]} 68. Bc3 {[%clk 0:00:18]}  Kd5 {[%clk 0:00:28]} 69. Bb4 {[%clk 0:00:18]}  Ke4 {[%clk 0:00:29]} 70. Bc3 {[%clk 0:00:19]}  Kf3 {[%clk 0:00:30]} 71. Bg7 {[%clk 0:00:19]}  Kg2 {[%clk 0:00:30]} 72. Bh8 {[%clk 0:00:20]}  Kf3 {[%clk 0:00:31]} 73. Bg7 {[%clk 0:00:21]}  Ke4 {[%clk 0:00:31]} 74. Bh8 {[%clk 0:00:22]}  Kd5 {[%clk 0:00:32]} 75. Bg7 {[%clk 0:00:23]}  Ke6 {[%clk 0:00:33]} 76. Bh8 {[%clk 0:00:24]}  Kd5 {[%clk 0:00:33]} 77. Bc3 {[%clk 0:00:25]}  Kc4 {[%clk 0:00:34]} 78. Bh8 {[%clk 0:00:25]}  Kd5 {[%clk 0:00:34]} 1/2-1/2


[Site "https://www.chess.com"]

[Event "Titled Tuesday Blitz December 14 2021"]
[White "Erdogdu, Mert"]
[Black "Urazayev, Arystanbek"]
[WhiteFideId "6301495"]
[BlackFideId "13709810"]
[WhiteElo "2485"]
[BlackElo "2321"]
[Result "0-1"]
[Round "09"]
[TimeControl "180+1"]
[Date "2021.12.14"]
[WhiteClock "0:00:07"]
[BlackClock "0:00:16"]

1. e4 {[%clk 0:03:00]}  c5 {[%clk 0:03:00]} 2. Nf3 {[%clk 0:03:00]}  d6 {[%clk 0:03:00]} 3. d4 {[%clk 0:03:01]}  cxd4 {[%clk 0:03:01]} 4. Nxd4 {[%clk 0:03:02]}  Nf6 {[%clk 0:03:02]} 5. Nc3 {[%clk 0:03:02]}  Nc6 {[%clk 0:03:02]} 6. Bg5 {[%clk 0:03:02]}  e6 {[%clk 0:03:02]} 7. Qd2 {[%clk 0:03:01]}  a6 {[%clk 0:03:00]} 8. O-O-O {[%clk 0:03:01]}  Bd7 {[%clk 0:03:01]} 9. Be3 {[%clk 0:02:59]}  Ng4 {[%clk 0:02:55]} 10. Bg5 {[%clk 0:02:59]}  Nf6 {[%clk 0:02:53]} 11. f3 {[%clk 0:02:59]}  Nxd4 {[%clk 0:02:49]} 12. Qxd4 {[%clk 0:02:58]}  Be7 {[%clk 0:02:49]} 13. Kb1 {[%clk 0:02:57]}  b5 {[%clk 0:02:49]} 14. h4 {[%clk 0:02:53]}  Rb8 {[%clk 0:02:41]} 15. Qd2 {[%clk 0:02:51]}  b4 {[%clk 0:02:39]} 16. Ne2 {[%clk 0:02:50]}  a5 {[%clk 0:02:39]} 17. Nd4 {[%clk 0:02:50]}  a4 {[%clk 0:02:37]} 18. Bd3 {[%clk 0:02:48]}  h6 {[%clk 0:02:31]} 19. Be3 {[%clk 0:02:47]}  h5 {[%clk 0:02:31]} 20. Bg5 {[%clk 0:02:47]}  Qb6 {[%clk 0:02:29]} 21. Ne2 {[%clk 0:02:34]}  b3 {[%clk 0:02:24]} 22. cxb3 {[%clk 0:02:34]}  axb3 {[%clk 0:02:24]} 23. a3 {[%clk 0:02:35]}  d5 {[%clk 0:02:24]} 24. e5 {[%clk 0:02:22]}  Ng8 {[%clk 0:02:24]} 25. Rc1 {[%clk 0:02:16]}  Bb5 {[%clk 0:02:12]} 26. Bxb5+ {[%clk 0:02:11]}  Qxb5 {[%clk 0:02:12]} 27. Nd4 {[%clk 0:02:11]}  Qb7 {[%clk 0:02:09]} 28. Nc6 {[%clk 0:02:01]}  Rc8 {[%clk 0:02:05]} 29. Nxe7 {[%clk 0:01:39]}  Nxe7 {[%clk 0:02:04]} 30. Bxe7 {[%clk 0:01:37]}  Kxe7 {[%clk 0:01:59]} 31. Qg5+ {[%clk 0:01:35]}  Kf8 {[%clk 0:01:59]} 32. Rxc8+ {[%clk 0:01:29]}  Qxc8 {[%clk 0:02:00]} 33. Rc1 {[%clk 0:01:29]}  Qb8 {[%clk 0:01:52]} 34. Rc3 {[%clk 0:01:17]}  Kg8 {[%clk 0:01:48]} 35. Qe3 {[%clk 0:01:08]}  Kh7 {[%clk 0:01:31]} 36. Rxb3 {[%clk 0:01:05]}  Qa8 {[%clk 0:01:31]} 37. Qd3+ {[%clk 0:01:00]}  g6 {[%clk 0:01:30]} 38. Rb4 {[%clk 0:00:57]}  Rc8 {[%clk 0:01:29]} 39. g4 {[%clk 0:00:51]}  hxg4 {[%clk 0:01:14]} 40. fxg4 {[%clk 0:00:50]}  Qa7 {[%clk 0:00:57]} 41. h5 {[%clk 0:00:46]}  Qg1+ {[%clk 0:00:57]} 42. Ka2 {[%clk 0:00:45]}  Rc1 {[%clk 0:00:45]} 43. Rb7 {[%clk 0:00:44]}  Kh6 {[%clk 0:00:33]} 44. Qd2+ {[%clk 0:00:34]}  g5 {[%clk 0:00:33]} 45. Rxf7 {[%clk 0:00:22]}  Ra1+ {[%clk 0:00:32]} 46. Kb3 {[%clk 0:00:23]}  Qb6+ {[%clk 0:00:33]} 47. Qb4 {[%clk 0:00:23]}  Qe3+ {[%clk 0:00:30]} 48. Ka4 {[%clk 0:00:23]}  Qe4 {[%clk 0:00:29]} 49. Rf6+ {[%clk 0:00:18]}  Kg7 {[%clk 0:00:25]} 50. Rxe6 {[%clk 0:00:18]}  Rc1 {[%clk 0:00:19]} 51. Rg6+ {[%clk 0:00:15]}  Kh7 {[%clk 0:00:16]} 52. Qxe4 {[%clk 0:00:15]}  dxe4 {[%clk 0:00:17]} 53. e6 {[%clk 0:00:08]}  e3 {[%clk 0:00:16]} 54. e7 {[%clk 0:00:08]}  Rc4+ {[%clk 0:00:16]} 55. Kb3 {[%clk 0:00:08]}  Re4 {[%clk 0:00:17]} 56. Rc6 {[%clk 0:00:04]}  e2 {[%clk 0:00:16]} 57. Rc1 {[%clk 0:00:05]}  e1=Q {[%clk 0:00:16]} 58. Rxe1 {[%clk 0:00:06]}  Rxe1 {[%clk 0:00:16]} 59. a4 {[%clk 0:00:07]}  Rxe7 {[%clk 0:00:16]} 60. a5 {[%clk 0:00:07]}  Re4 {[%clk 0:00:16]} 61. a6 {[%clk 0:00:06]}  Re6 {[%clk 0:00:16]} 62. Kc4 {[%clk 0:00:07]} 0-1


[Site "https://www.chess.com"]